fUST/lending_fUST_20250701
["ID","MTS","AMOUNT","RATE_DAILY","PERIOD"]
[368850322,1751376657163,-460.0,0.00019461,2]
[368850324,1751376657172,-1272.84,0.00019461,2]
[368850326,1751376657181,-2622.27,0.00019461,2]
[368850327,1751376657190,-4856.27,0.00019461,2]
[368850330,1751376657200,-460.0,0.00019461,2]
[368850332,1751376657209,-1670.35,0.00019461,2]
[368850334,1751376657219,-460.0,0.00019461,2]
[368850336,1751376657228,-460.0,0.00019461,2]
[368850338,1751376657238,-460.0,0.00019461,2]
[368850340,1751376657248,-460.0,0.00019461,2]
[368850341,1751376657258,-460.0,0.00019461,2]
[368850344,1751376657269,-632.08,0.00019461,2]
[368850345,1751376657281,-460.0,0.00019461,2]
[368850347,1751376657291,-460.0,0.00019461,2]
[368850350,1751376657301,-460.0,0.00019461,2]
[368850352,1751376657310,-2487.2,0.00019461,2]
[368850354,1751376657320,-2089.93,0.00019461,2]
[368850356,1751376657330,-460.0,0.00019461,2]
[368850358,1751376657340,-460.0,0.00019461,2]
[368850360,1751376657349,-460.0,0.00019461,2]
[368850362,1751376657359,-1083.66,0.00019461,2]
[368850364,1751376657369,-2999.72,0.00019461,2]
[368850366,1751376657378,-2053.17,0.00019463,2]
[368850368,1751376657388,-1092.8,0.00019463,2]
[368850370,1751376657398,-1591.45,0.00019463,2]
[368850372,1751376657407,-500.0,0.0001948,2]
[368850374,1751376657417,-500.0,0.0001948,2]
[368850376,1751376657426,-500.0,0.0001948,2]
[368850378,1751376657436,-500.0,0.0001948,2]
[368850380,1751376657445,-500.56052383,0.0001948,2]
[368850382,1751376657454,-500.0,0.0001948,2]
[368850384,1751376657463,-198.88829134,0.0001948,2]
[368850386,1751376657473,-500.0,0.0001948,2]
[368850388,1751376657482,-500.0,0.0001948,2]
[368850390,1751376657492,-1068.065931,0.0001948,2]
[368850392,1751376657501,-1107.58437044,0.00019535,2]
[368850394,1751376657511,-6863.63929137,0.00019555,2]
[368850396,1751376657521,-511.02,0.00019558,2]
[368850398,1751376657531,-460.0,0.00019558,2]
[368850400,1751376657541,-156.90513905,0.00019558,2]
[368850411,1751376657644,-460.0,0.00019558,2]
[368850413,1751376657653,-460.0,0.00019558,2]
[368850415,1751376657663,-151.0,0.00019558,2]
[368850417,1751376657673,-151.0,0.00019558,2]
[368850419,1751376657683,-460.0,0.00019558,2]
[368850421,1751376657692,-151.0,0.00019558,2]
[368850423,1751376657702,-151.0,0.00019558,2]
[368850425,1751376657711,-460.0,0.00019558,2]
[368850427,1751376657720,-460.0,0.00019558,2]
[368850428,1751376657729,-287.086593,0.00019558,2]
[368850429,1751376657739,-287.086593,0.00019558,2]
[368850430,1751376657749,-629.01,0.00019558,2]
[368850431,1751376657759,-460.0,0.00019558,2]
[368850432,1751376657769,-460.0,0.00019558,2]
[368850433,1751376657780,-460.0,0.00019558,2]
[368850434,1751376657795,-460.0,0.00019558,2]
[368850435,1751376657804,-460.0,0.00019558,2]
[368850436,1751376657813,-460.0,0.00019558,2]
[368850437,1751376657823,-262.73755337,0.00019558,2]
[368850438,1751376657833,-460.0,0.00019558,2]
[368850439,1751376657843,-460.0,0.00019558,2]
[368850440,1751376657853,-460.0,0.00019558,2]
[368850441,1751376657863,-460.0,0.00019558,2]
[368850442,1751376657873,-642.37,0.00019558,2]
[368850443,1751376657882,-460.0,0.00019558,2]
[368850444,1751376657892,-474.1,0.00019558,2]
[368850445,1751376657901,-474.54,0.00019558,2]
[368850446,1751376657911,-1394.04,0.00019558,2]
[368850447,1751376657920,-460.0,0.00019558,2]
[368850448,1751376657929,-460.0,0.00019558,2]
[368850449,1751376657939,-603.08,0.00019558,2]
[368850450,1751376657949,-1256.82,0.00019558,2]
[368850451,1751376657958,-857.59,0.00019558,2]
[368850452,1751376657968,-460.0,0.00019558,2]
[368850453,1751376657977,-460.0,0.00019558,2]
[368850454,1751376657987,-460.0,0.00019558,2]
[368850455,1751376657997,-540.67,0.00019558,2]
[368850456,1751376658006,-460.0,0.00019558,2]
[368850458,1751376658016,-1100.95,0.00019558,2]
[368850459,1751376658025,-703.62,0.00019558,2]
[368850461,1751376658034,-460.0,0.00019558,2]
[368850463,1751376658043,-513.66,0.00019558,2]
[368850465,1751376658052,-653.48,0.00019558,2]
[368850467,1751376658061,-495.49,0.00019558,2]
[368850469,1751376658071,-678.27,0.00019558,2]
[368850471,1751376658081,-460.0,0.00019558,2]
[368850473,1751376658090,-460.0,0.00019559,2]
[368850475,1751376658099,-460.0,0.00019559,2]
[368850477,1751376658109,-460.0,0.00019559,2]
[368850479,1751376658119,-823.93,0.00019559,2]
[368850481,1751376658129,-460.0,0.00019559,2]
[368850483,1751376658139,-460.0,0.00019559,2]
[368850485,1751376658149,-460.0,0.00019559,2]
[368850487,1751376658158,-460.0,0.00019559,2]
[368850489,1751376658168,-695.91,0.00019559,2]
[368850491,1751376658178,-460.0,0.00019559,2]
[368850493,1751376658187,-535.2446473,0.00019559,2]
[368850495,1751376658196,-460.0,0.00019559,2]
[368850497,1751376658206,-460.0,0.00019559,2]
[368850499,1751376658216,-460.0,0.00019559,2]
[368850501,1751376658225,-460.0,0.00019559,2]
[368850503,1751376658235,-979.38,0.00019559,2]
[368850505,1751376658245,-460.0,0.00019559,2]
[368850508,1751376658267,-460.0,0.00019559,2]
[368850511,1751376658285,-460.0,0.00019559,2]
[368850514,1751376658305,-460.0,0.00019559,2]
[368850517,1751376658325,-460.0,0.00019559,2]
[368850520,1751376658344,-460.0,0.00019559,2]
[368850523,1751376658360,-460.0,0.00019561,2]
[368850526,1751376658380,-460.0,0.00019561,2]
[368850529,1751376658396,-460.0,0.00019561,2]
[368850531,1751376658414,-1129.1,0.00019561,2]
[368850534,1751376658434,-460.0,0.00019561,2]
[368850538,1751376658454,-460.0,0.00019561,2]
[368850540,1751376658467,-460.0,0.00019561,2]
[368850543,1751376658484,-460.0,0.00019561,2]
[368850545,1751376658499,-460.0,0.00019561,2]
[368850548,1751376658518,-185.47605199,0.00019561,2]
[368850551,1751376658536,-460.0,0.00019561,2]
[368850553,1751376658553,-460.0,0.00019561,2]
[368850556,1751376658570,-460.0,0.00019561,2]
[368850559,1751376658587,-704.77,0.00019561,2]
[368850562,1751376658606,-460.0,0.00019561,2]
[368850564,1751376658623,-460.0,0.00019561,2]
[368850567,1751376658641,-768.12,0.00019561,2]
[368850570,1751376658658,-5015.81,0.00019561,2]
[368850572,1751376658673,-460.0,0.00019561,2]
[368850575,1751376658688,-737.94,0.00019561,2]
[368850578,1751376658703,-1161.05,0.00019561,2]
[368850580,1751376658721,-651.54,0.00019561,2]
[368850583,1751376658737,-460.0,0.00019561,2]
[368850586,1751376658754,-2469.46,0.00019561,2]
[368850588,1751376658769,-1448.72,0.00019561,2]
[368850591,1751376658791,-460.0,0.00019561,2]
[368850594,1751376658807,-460.0,0.00019561,2]
[368850596,1751376658822,-460.0,0.00019562,2]
[368850599,1751376658840,-322.84,0.00019562,2]
[368850602,1751376658855,-460.0,0.00019562,2]
[368850604,1751376658870,-3553.77,0.00019562,2]
[368850607,1751376658886,-460.0,0.00019562,2]
[368850609,1751376658901,-1753.82,0.00019562,2]
[368850612,1751376658916,-5531.74,0.00019562,2]
[368850614,1751376658931,-1794.4,0.00019562,2]
[368850617,1751376658946,-460.0,0.00019563,2]
[368850620,1751376658963,-206.44812829,0.00019564,2]
[368850623,1751376658980,-460.41989487,0.00019564,2]
[368850625,1751376658996,-460.0,0.00019564,2]
[368850628,1751376659012,-460.0,0.00019564,2]
[368850630,1751376659029,-460.0,0.00019564,2]
[368850633,1751376659045,-460.0,0.00019564,2]
[368850635,1751376659061,-460.0,0.00019564,2]
[368850638,1751376659076,-460.0,0.00019564,2]
[368850641,1751376659091,-460.0,0.00019564,2]
[368850643,1751376659106,-1148.56499215,0.0001959,2]
[368850646,1751376659122,-1302.70657872,0.00019616,2]
[368850649,1751376659138,-1504.73313096,0.00019616,2]
[368850651,1751376659153,-2000.0,0.00019616,2]
[368850654,1751376659169,-2000.0,0.00019616,2]
[368850656,1751376659184,-2000.0,0.00019616,2]
[368850659,1751376659199,-469.92915345,0.00019616,2]
[368850661,1751376659212,-1191.06189686,0.00019645,2]
[368850664,1751376659222,-1235.13118704,0.000197,2]
[368850666,1751376659232,-282.63031998,0.00019734,2]
[368850683,1751376659383,-460.0,0.00019735,2]
[368850686,1751376659411,-460.0,0.00019735,2]
[368850688,1751376659421,-524.13,0.00019735,2]
[368850690,1751376659430,-3650.08,0.00019735,2]
[368850692,1751376659440,-460.0,0.00019735,2]
[368850694,1751376659449,-787.8,0.00019735,2]
[368850696,1751376659458,-460.0,0.00019735,2]
[368850698,1751376659467,-460.0,0.00019735,2]
[368850700,1751376659476,-1272.84,0.00019735,2]
[368850702,1751376659485,-2622.27,0.00019735,2]
[368850704,1751376659494,-4856.27,0.00019735,2]
[368850706,1751376659503,-460.0,0.00019735,2]
[368850708,1751376659512,-1670.35,0.00019735,2]
[368850710,1751376659522,-460.0,0.00019735,2]
[368850712,1751376659532,-460.0,0.00019735,2]
[368850714,1751376659541,-460.0,0.00019735,2]
[368850716,1751376659551,-460.0,0.00019735,2]
[368850718,1751376659560,-632.08,0.00019735,2]
[368850720,1751376659569,-460.0,0.00019735,2]
[368850722,1751376659579,-460.0,0.00019735,2]
[368850724,1751376659588,-460.0,0.00019735,2]
[368850726,1751376659598,-2487.2,0.00019735,2]
[368850728,1751376659607,-2089.93,0.00019735,2]
[368850730,1751376659616,-460.0,0.00019735,2]
[368850732,1751376659626,-460.0,0.00019735,2]
[368850734,1751376659635,-1083.66,0.00019735,2]
[368850736,1751376659645,-2999.72,0.00019735,2]
[368850738,1751376659654,-151.0,0.00019737,2]
[368850740,1751376659664,-151.0,0.00019737,2]
[368850742,1751376659673,-151.0,0.00019737,2]
[368850744,1751376659683,-151.0,0.00019737,2]
[368850746,1751376659692,-151.0,0.00019737,2]
[368850748,1751376659702,-151.0,0.00019737,2]
[368850750,1751376659711,-201.699608,0.00019737,2]
[368850752,1751376659721,-201.699608,0.00019737,2]
[368850754,1751376659730,-151.0,0.00019737,2]
[368850756,1751376659739,-271.8,0.00019737,2]
[368850757,1751376659748,-271.8,0.00019737,2]
[368850759,1751376659757,-721.480194,0.00019737,2]
[368850761,1751376659766,-721.480194,0.00019737,2]
[368850764,1751376659777,-2053.17,0.00019737,2]
[368850765,1751376659790,-1092.8,0.00019737,2]
[368850768,1751376659803,-1591.45,0.00019737,2]
[368850769,1751376659813,-4351.36769901,0.000198,2]
[368850771,1751376659823,-500.0,0.000198,2]
[368850773,1751376659834,-500.0,0.000198,2]
[368850775,1751376659844,-6863.63929137,0.00019831,2]
[368850777,1751376659853,-460.0,0.00019832,2]
[368850780,1751376659864,-460.0,0.00019832,2]
[368850781,1751376659874,-460.0,0.00019832,2]
[368850783,1751376659884,-460.0,0.00019832,2]
[368850785,1751376659893,-460.0,0.00019832,2]
[368850787,1751376659902,-629.01,0.00019832,2]
[368850789,1751376659911,-460.0,0.00019832,2]
[368850791,1751376659921,-460.0,0.00019832,2]
[368850793,1751376659931,-460.0,0.00019832,2]
[368850795,1751376659941,-460.0,0.00019832,2]
[368850797,1751376659952,-460.0,0.00019832,2]
[368850799,1751376659962,-460.0,0.00019832,2]
[368850801,1751376659971,-460.0,0.00019832,2]
[368850803,1751376659981,-460.0,0.00019832,2]
[368850805,1751376659991,-642.37,0.00019832,2]
[368850807,1751376660000,-474.1,0.00019832,2]
[368850809,1751376660009,-474.54,0.00019832,2]
[368850811,1751376660019,-1394.04,0.00019832,2]
[368850813,1751376660030,-460.0,0.00019832,2]
[368850815,1751376660039,-564.56,0.00019832,2]
[368850817,1751376660050,-603.08,0.00019832,2]
[368850819,1751376660059,-1256.82,0.00019832,2]
[368850821,1751376660069,-857.59,0.00019832,2]
[368850823,1751376660078,-460.0,0.00019832,2]
[368850825,1751376660087,-460.0,0.00019832,2]
[368850827,1751376660097,-460.0,0.00019832,2]
[368850829,1751376660106,-540.67,0.00019832,2]
[368850831,1751376660116,-460.0,0.00019832,2]
[368850833,1751376660125,-1100.95,0.00019832,2]
[368850835,1751376660135,-703.62,0.00019832,2]
[368850837,1751376660145,-460.0,0.00019832,2]
[368850839,1751376660154,-513.66,0.00019832,2]
[368850842,1751376660164,-653.48,0.00019832,2]
[368850843,1751376660173,-495.49,0.00019832,2]
[368850845,1751376660183,-678.27,0.00019832,2]
[368850847,1751376660192,-460.0,0.00019832,2]
[368850849,1751376660202,-460.0,0.00019833,2]
[368850851,1751376660211,-460.0,0.00019833,2]
[368850852,1751376660220,-460.0,0.00019833,2]
[368850853,1751376660229,-823.93,0.00019833,2]
[368850854,1751376660239,-460.0,0.00019833,2]
[368850855,1751376660249,-460.0,0.00019833,2]
[368850856,1751376660259,-460.0,0.00019833,2]
[368850857,1751376660268,-460.0,0.00019833,2]
[368850858,1751376660278,-695.91,0.00019833,2]
[368850859,1751376660288,-460.0,0.00019833,2]
[368850860,1751376660298,-460.0,0.00019833,2]
[368850861,1751376660308,-460.0,0.00019833,2]
[368850862,1751376660317,-460.0,0.00019833,2]
[368850863,1751376660327,-494.7,0.00019833,2]
[368850864,1751376660338,-979.38,0.00019833,2]
[368850865,1751376660347,-460.0,0.00019833,2]
[368850866,1751376660357,-460.0,0.00019833,2]
[368850867,1751376660367,-460.0,0.00019833,2]
[368850868,1751376660377,-460.0,0.00019833,2]
[368850869,1751376660387,-460.0,0.00019835,2]
[368850870,1751376660396,-511.02,0.00019835,2]
[368850871,1751376660406,-1129.1,0.00019835,2]
[368850872,1751376660415,-460.0,0.00019835,2]
[368850873,1751376660424,-460.0,0.00019835,2]
[368850874,1751376660434,-460.0,0.00019835,2]
[368850875,1751376660443,-374.13021559,0.00019835,2]
[368850876,1751376660452,-460.0,0.00019835,2]
[368850877,1751376660461,-460.0,0.00019835,2]
[368850878,1751376660471,-460.0,0.00019835,2]
[368850879,1751376660480,-704.77,0.00019835,2]
[368850880,1751376660489,-460.0,0.00019835,2]
[368850881,1751376660499,-460.0,0.00019835,2]
[368850882,1751376660508,-768.12,0.00019835,2]
[368850883,1751376660518,-5015.81,0.00019835,2]
[368850884,1751376660528,-460.0,0.00019835,2]
[368850885,1751376660538,-737.94,0.00019835,2]
[368850886,1751376660547,-1161.05,0.00019835,2]
[368850887,1751376660557,-651.54,0.00019835,2]
[368850888,1751376660566,-460.0,0.00019835,2]
[368850889,1751376660576,-2469.46,0.00019835,2]
[368850890,1751376660586,-1448.72,0.00019835,2]
[368850891,1751376660595,-460.0,0.00019835,2]
[368850892,1751376660605,-460.0,0.00019835,2]
[368850893,1751376660615,-460.0,0.00019836,2]
[368850894,1751376660625,-460.0,0.00019836,2]
[368850895,1751376660634,-3553.77,0.00019836,2]
[368850896,1751376660643,-460.0,0.00019836,2]
[368850897,1751376660653,-1753.82,0.00019836,2]
[368850898,1751376660662,-5531.74,0.00019836,2]
[368850899,1751376660672,-1794.4,0.00019836,2]
[368850901,1751376660682,-460.0,0.00019837,2]
[368850903,1751376660692,-460.0,0.00019838,2]
[368850904,1751376660701,-460.0,0.00019838,2]
[368850905,1751376660711,-460.0,0.00019838,2]
[368850907,1751376660720,-460.0,0.00019838,2]
[368850908,1751376660729,-460.0,0.00019838,2]
[368850909,1751376660739,-460.0,0.00019838,2]
[368850910,1751376660748,-460.0,0.00019838,2]
[368850911,1751376660757,-2500.0,0.00019864,2]
[368850912,1751376660766,-2500.0,0.00019864,2]
[368850913,1751376660776,-350.0,0.00019868,2]
[368850914,1751376660787,-502.24682604,0.00019868,2]
[368850915,1751376660798,-1000.0,0.00019868,2]
[368850916,1751376660808,-1501.86339609,0.00019868,2]
[368850917,1751376660818,-1800.0,0.00019868,2]
[368850918,1751376660828,-1000.0,0.00019868,2]
[368850919,1751376660838,-1001.47258747,0.00019868,2]
[368850920,1751376660847,-1049.29640024,0.00019868,2]
[368850921,1751376660857,-502.14185652,0.00019868,2]
[368850922,1751376660870,-533.67778308,0.00019868,2]
[368850923,1751376660879,-501.12105409,0.00019868,2]
[368850924,1751376660889,-500.0,0.00019868,2]
[368850925,1751376660899,-230.46684942,0.00019868,2]
[368850926,1751376660908,-1000.0,0.00019868,2]
[368850927,1751376660918,-1500.0,0.00019868,2]
[368850928,1751376660928,-1500.0,0.00019868,2]
[368850929,1751376660938,-1500.0,0.00019868,2]
[368850930,1751376660948,-500.0,0.00019868,2]
[368850931,1751376660958,-1001.8588624,0.00019868,2]
[368850932,1751376660968,-500.41508319,0.00019868,2]
[368850933,1751376660977,-501.22650633,0.00019868,2]
[368850934,1751376660986,-1000.0,0.00019868,2]
[368850935,1751376660996,-5000.0,0.00019916,2]
[368850936,1751376661006,-25000.0,0.00019916,2]
[368850937,1751376661015,-181.30526166,0.00019921,2]
[368850938,1751376661026,-271.06080444,0.00019921,2]
[368850939,1751376661036,-1000.0,0.00019921,2]
[368850940,1751376661045,-1000.0,0.00019921,2]
[368850941,1751376661055,-281038.28671042,0.00019999,2]
[368850942,1751376661065,-151.0,0.00019999,2]
[368850943,1751376661075,-6925.0,0.0002,2]
[368850944,1751376661084,-5178.0,0.0002,2]
[368850945,1751376661093,-178.039,0.0002,2]
[368850946,1751376661103,-1492.74,0.0002,2]
[368850947,1751376661113,-7528.11295198,0.0002,2]
[368850948,1751376661122,-26738.83171582,0.0002,2]
[368850949,1751376661132,-460.0,0.00020009,2]
[368850950,1751376661141,-524.13,0.00020009,2]
[368850951,1751376661151,-3650.08,0.00020009,2]
[368850952,1751376661160,-787.8,0.00020009,2]
[368850953,1751376661171,-460.0,0.00020009,2]
[368850954,1751376661180,-460.0,0.00020009,2]
[368850955,1751376661190,-1272.84,0.00020009,2]
[368850956,1751376661199,-2622.27,0.00020009,2]
[368850957,1751376661209,-4856.27,0.00020009,2]
[368850959,1751376661219,-460.0,0.00020009,2]
[368850961,1751376661228,-1670.35,0.00020009,2]
[368850963,1751376661237,-460.0,0.00020009,2]
[368850964,1751376661248,-460.0,0.00020009,2]
[368850967,1751376661258,-460.0,0.00020009,2]
[368850969,1751376661268,-460.0,0.00020009,2]
[368850970,1751376661278,-632.08,0.00020009,2]
[368850972,1751376661290,-460.0,0.00020009,2]
[368850974,1751376661303,-460.0,0.00020009,2]
[368850975,1751376661312,-460.0,0.00020009,2]
[368850976,1751376661323,-2487.2,0.00020009,2]
[368850977,1751376661334,-2089.93,0.00020009,2]
[368850978,1751376661344,-460.0,0.00020009,2]
[368850979,1751376661354,-460.0,0.00020009,2]
[368850980,1751376661363,-1083.66,0.00020009,2]
[368850981,1751376661374,-2999.72,0.00020009,2]
[368850982,1751376661383,-2053.17,0.00020011,2]
[368850983,1751376661393,-1092.8,0.00020011,2]
[368850985,1751376661403,-1591.45,0.00020011,2]
[368850987,1751376661413,-1000.0,0.00020028,2]
[368850989,1751376661535,-500.0,0.00020028,2]
[368850990,1751376661545,-1000.0,0.00020028,2]
[368850991,1751376661554,-1000.0,0.00020028,2]
[368850992,1751376661564,-151.0,0.00020028,2]
[368850993,1751376661573,-151.0,0.00020028,2]
[368850994,1751376661582,-151.0,0.00020028,2]
[368850995,1751376661592,-151.0,0.00020028,2]
[368850996,1751376661602,-151.0,0.00020028,2]
[368850997,1751376661612,-181.28216107,0.0002008,2]
[368850998,1751376661621,-152.95293,0.00020086,2]
[368850999,1751376661632,-151.0,0.00020086,2]
[368851000,1751376661641,-159.486442,0.00020086,2]
[368851001,1751376661650,-159.486442,0.00020086,2]
[368851002,1751376661660,-460.0,0.00020106,2]
[368851003,1751376661669,-460.0,0.00020106,2]
[368851004,1751376661678,-460.0,0.00020106,2]
[368851005,1751376661688,-460.0,0.00020106,2]
[368851006,1751376661697,-460.0,0.00020106,2]
[368851007,1751376661706,-629.01,0.00020106,2]
[368851008,1751376661715,-460.0,0.00020106,2]
[368851009,1751376661725,-460.0,0.00020106,2]
[368851010,1751376661734,-460.0,0.00020106,2]
[368851011,1751376661744,-460.0,0.00020106,2]
[368851012,1751376661754,-393.75,0.00020106,2]
[368851013,1751376661763,-460.0,0.00020106,2]
[368851014,1751376661773,-460.0,0.00020106,2]
[368851015,1751376661783,-460.0,0.00020106,2]
[368851016,1751376661796,-642.37,0.00020106,2]
[368851017,1751376661807,-474.1,0.00020106,2]
[368851018,1751376661816,-474.54,0.00020106,2]
[368851020,1751376661827,-1394.04,0.00020106,2]
[368851022,1751376661837,-460.0,0.00020106,2]
[368851024,1751376661846,-603.08,0.00020106,2]
[368851027,1751376661856,-1256.82,0.00020106,2]
[368851029,1751376661867,-857.59,0.00020106,2]
[368851030,1751376661876,-460.0,0.00020106,2]
[368851031,1751376661885,-460.0,0.00020106,2]
[368851032,1751376661895,-460.0,0.00020106,2]
[368851033,1751376661904,-540.67,0.00020106,2]
[368851035,1751376661915,-460.0,0.00020106,2]
[368851037,1751376661925,-1100.95,0.00020106,2]
[368851038,1751376661936,-703.62,0.00020106,2]
[368851039,1751376661945,-513.66,0.00020106,2]
[368851040,1751376661955,-653.48,0.00020106,2]
[368851041,1751376661965,-495.49,0.00020106,2]
[368851042,1751376661975,-678.27,0.00020106,2]
[368851043,1751376661984,-460.0,0.00020106,2]
[368851044,1751376661994,-6863.63929137,0.00020107,2]
[368851045,1751376662003,-460.0,0.00020107,2]
[368851046,1751376662013,-460.0,0.00020107,2]
[368851047,1751376662023,-460.0,0.00020107,2]
[368851048,1751376662034,-823.93,0.00020107,2]
[368851049,1751376662044,-460.0,0.00020107,2]
[368851050,1751376662054,-460.0,0.00020107,2]
[368851051,1751376662064,-460.0,0.00020107,2]
[368851052,1751376662073,-460.0,0.00020107,2]
[368851053,1751376662082,-695.91,0.00020107,2]
[368851054,1751376662092,-460.0,0.00020107,2]
[368851055,1751376662101,-460.0,0.00020107,2]
[368851056,1751376662110,-460.0,0.00020107,2]
[368851057,1751376662119,-460.0,0.00020107,2]
[368851058,1751376662129,-979.38,0.00020107,2]
[368851059,1751376662138,-151.0,0.00020107,2]
[368851060,1751376662148,-460.0,0.00020107,2]
[368851061,1751376662157,-151.0,0.00020107,2]
[368851062,1751376662167,-151.0,0.00020107,2]
[368851063,1751376662176,-460.0,0.00020107,2]
[368851064,1751376662187,-460.0,0.00020107,2]
[368851065,1751376662196,-460.0,0.00020107,2]
[368851066,1751376662206,-460.0,0.00020109,2]
[368851067,1751376662215,-1129.1,0.00020109,2]
[368851068,1751376662226,-460.0,0.00020109,2]
[368851069,1751376662235,-460.0,0.00020109,2]
[368851070,1751376662245,-460.0,0.00020109,2]
[368851071,1751376662255,-460.0,0.00020109,2]
[368851072,1751376662264,-704.77,0.00020109,2]
[368851073,1751376662274,-460.0,0.00020109,2]
[368851074,1751376662285,-460.0,0.00020109,2]
[368851075,1751376662294,-768.12,0.00020109,2]
[368851076,1751376662304,-5015.81,0.00020109,2]
[368851077,1751376662314,-460.0,0.00020109,2]
[368851078,1751376662324,-737.94,0.00020109,2]
[368851079,1751376662334,-1161.05,0.00020109,2]
[368851080,1751376662344,-651.54,0.00020109,2]
[368851081,1751376662353,-151.0,0.00020109,2]
[368851082,1751376662363,-151.0,0.00020109,2]
[368851083,1751376662373,-151.0,0.00020109,2]
[368851084,1751376662382,-460.0,0.00020109,2]
[368851085,1751376662392,-2469.46,0.00020109,2]
[368851086,1751376662402,-151.0,0.00020109,2]
[368851087,1751376662412,-1448.72,0.00020109,2]
[368851088,1751376662422,-460.0,0.00020109,2]
[368851089,1751376662432,-460.0,0.00020109,2]
[368851090,1751376662441,-151.0,0.00020109,2]
[368851091,1751376662451,-151.0,0.00020109,2]
[368851092,1751376662461,-460.0,0.0002011,2]
[368851093,1751376662471,-151.0,0.0002011,2]
[368851094,1751376662481,-151.0,0.0002011,2]
[368851095,1751376662490,-151.0,0.0002011,2]
[368851096,1751376662500,-151.0,0.0002011,2]
[368851097,1751376662511,-460.0,0.0002011,2]
[368851098,1751376662521,-3553.77,0.0002011,2]
[368851099,1751376662533,-460.0,0.0002011,2]
[368851100,1751376662543,-281.925789,0.0002011,2]
[368851101,1751376662553,-281.925789,0.0002011,2]
[368851102,1751376662562,-1753.82,0.0002011,2]
[368851103,1751376662572,-151.0,0.0002011,2]
[368851104,1751376662581,-5531.74,0.0002011,2]
[368851105,1751376662592,-1794.4,0.0002011,2]
[368851106,1751376662601,-297.882111,0.0002011,2]
[368851107,1751376662611,-297.882111,0.0002011,2]
[368851108,1751376662621,-460.0,0.00020111,2]
[368851109,1751376662631,-460.0,0.00020112,2]
[368851110,1751376662641,-460.0,0.00020112,2]
[368851111,1751376662651,-460.0,0.00020112,2]
[368851112,1751376662660,-460.0,0.00020112,2]
[368851113,1751376662669,-460.0,0.00020112,2]
[368851114,1751376662678,-460.0,0.00020112,2]
[368851115,1751376662688,-460.0,0.00020112,2]
[368851116,1751376662698,-151.0,0.00020112,2]
[368851117,1751376662708,-1066.563368,0.00020112,2]
[368851118,1751376662717,-1066.563368,0.00020112,2]
[368851119,1751376662728,-1500.0,0.00020164,2]
[368851120,1751376662738,-2007.21087766,0.00020164,2]
[368851121,1751376662748,-2500.0,0.00020164,2]
[368851122,1751376662757,-395.620994,0.00020187,2]
[368851123,1751376662767,-215.0738,0.00020189,2]
[368851124,1751376662776,-500.0,0.00020205,2]
[368851125,1751376662791,-460.0,0.00020283,2]